[Event "18th Charleroi Open-A 2019"]
[Site "Charleroi"]
[Date "2019.08.03"]
[Round "9.19"]
[White "Partoens, Remi"]
[Black "Boucquet, Emile"]
[Result "1-0"]
[ECO "B22"]
[WhiteElo "1957"]
[BlackElo "2064"]
[Annotator "NA"]
[PlyCount "129"]
[EventDate "2019.07.22"]
[EventType "swiss"]
[EventCountry "BEL"]
[SourceTitle "playchess.com"]
[Source "ChessBase"]
[SourceQuality "1"]
[TimeControl "40/5400+30:1800+30"]

1. e4 {[%emt 0:00:00]} c5 {[%emt 0:00:00]} 2. c3 {[%emt 0:00:58]} Nf6 {[%emt 0:00:08]} 3. e5 {[%emt 0:00:28]} Nd5 {[%emt 0:00:02]} 4. d4 {[%emt 0:00:23]} cxd4 {[%emt 0:00:02]} 5. cxd4 {[%emt 0:00:29]} Nc6 {[%emt 0:00:04]} 6. Nf3 {[%emt 0:00:11]} d6 {[%emt 0:00:04]} 7. Bc4 {[%emt 0:00:17]} Nb6 {[%emt 0:00:05]} 8. Bb3 {[%emt 0:00:03]} dxe5 {[%emt 0:00:03]} 9. dxe5 {[%emt 0:00:06]} Qxd1+ {[%emt 0:00:49]} 10. Bxd1 {[%emt 0:02:01]} Nc4 {[%emt 0:03:07]} 11. Nc3 {[%emt 0:04:54]} N4xe5 {[%emt 0:18:50]} 12. Nxe5 {[%emt 0:00:52]} Nxe5 {[%emt 0:04:06]} 13. O-O {[%emt 0:00:08]} Bd7 {[%emt 0:01:21]} 14. Bf4 {[%emt 0:04:53]} Ng6 {[%emt 0:01:39]} 15. Be3 {[%emt 0:06:39]} Bc6 {[%emt 0:03:22]} 16. Rc1 {[%emt 0:04:00]} e6 {[%emt 0:04:27]} 17. Bf3 {[%emt 0:03:20]} Bxf3 {[%emt 0:09:39]} 18. gxf3 {[%emt 0:00:15]} a6 {[%emt 0:32:07]} 19. Na4 {[%emt 0:04:25]} Bd6 {[%emt 0:02:49]} 20. Rfd1 {[%emt 0:18:05]} Rd8 {[%emt 0:05:37]} 21. Bb6 {[%emt 0:03:01]} Rd7 {[%emt 0:00:01]} 22. Bc5 {[%emt 0:08:42]} Bxc5 {[%emt 0:07:05]} 23. Rxd7 {[%emt 0:00:29]} Bxf2+ {[%emt 0:00:13]} 24. Kxf2 {[%emt 0:00:07]} Kxd7 {[%emt 0:00:05]} 25. Nc5+ {[%emt 0:00:06]} Ke7 {[%emt 0:00:28]} 26. Nxb7 {[%emt 0:00:39]} Rb8 {[%emt 0:00:57]} 27. Rc7+ {[%emt 0:00:15]} Kf6 {[%emt 0:00:06]} 28. Kg3 {[%emt 0:03:42]} h5 {[%emt 0:02:37]} 29. f4 {[%emt 0:07:26]} e5 {[%emt 0:03:11]} 30. Rc6+ {[%emt 0:04:12]} Ke7 {[%emt 0:00:06]} 31. f5 {[%emt 0:03:48]} Nf4 {[%emt 0:00:17]} 32. Rc7+ {[%emt 0:01:27]} Kf8 {[%emt 0:00:07]} 33. b3 {[%emt 0:00:24]} Nd5 {[%emt 0:00:49]} 34. Rd7 {[%emt 0:04:30]} Nf6 {[%emt 0:00:05]} 35. Rc7 {[%emt 0:01:20]} Ne8 {[%emt 0:00:24]} 36. Rd7 {[%emt 0:01:00]} Nf6 {[%emt 0:00:05]} 37. Rc7 {[%emt 0:00:06]} Nd5 {[%emt 0:00:02]} 38. Rd7 {[%emt 0:00:08]} Nb6 {[%emt 0:01:39]} 39. Rc7 {[%emt 0:00:10]} Na8 {[%emt 0:00:05]} 40. Rc6 {[%emt 0:00:42]} Rxb7 {[%emt 0:00:45]} 41. Rc8+ {[%emt 0:30:07]} Ke7 {[%emt 0:30:04]} 42. Rxa8 {[%emt 0:00:07]} Kf6 {[%emt 0:00:00]} 43. Rxa6+ {[%emt 0:00:00]} Kxf5 {[%emt 0:00:00]} 44. Rc6 {[%emt 0:00:00]} Rd7 {[%emt 0:00:00]} 45. Rc2 {[%emt 0:00:00]} Rd3+ {[%emt 0:00:00]} 46. Kf2 {[%emt 0:00:00]} Ke4 {[%emt 0:00:00]} 47. b4 {[%emt 0:00:00]} Rf3+ {[%emt 0:00:11]} 48. Kg2 {[%emt 0:00:00]} Rf6 {[%emt 0:01:39]} 49. b5 {[%emt 0:00:00]} Rb6 {[%emt 0:00:43]} 50. a4 {[%emt 0:00:00]} Kd5 {[%emt 0:01:53]} 51. Rc7 {[%emt 0:00:00]} Ke6 {[%emt 0:00:20]} 52. Rc1 {[%emt 0:00:00]} Kd6 {[%emt 0:00:18]} 53. Rf1 {[%emt 0:00:00]} Rb7 {[%emt 0:00:15]} 54. Rc1 {[%emt 0:00:45]} Rc7 {[%emt 0:02:17]} 55. Rb1 {[%emt 0:02:15]} Rc2+ {[%emt 0:00:19]} 56. Kf3 {[%emt 0:03:46]} Kc7 {[%emt 0:00:05]} 57. b6+ {[%emt 0:00:56]} Kb7 {[%emt 0:00:02]} 58. a5 {[%emt 0:00:14]} Ra2 {[%emt 0:00:04]} 59. Rb5 {[%emt 0:00:09]} f6 {[%emt 0:00:21]} 60. Ke4 {[%emt 0:00:50]} Ra4+ {[%emt 0:03:20]} 61. Kd5 {[%emt 0:05:40]} e4 {[%emt 0:00:18]} 62. Rc5 {[%emt 0:01:35]} e3 {[%emt 0:00:13]} 63. Rc7+ {[%emt 0:01:24]} Kb8 {[%emt 0:00:18]} 64. Rxg7 {[%emt 0:00:50]} e2 {[%emt 0:01:01]} 65. a6 {[%emt 0:01:02]} 1-0

[Event "18th Charleroi Open-A 2019"]
[Site "Charleroi"]
[Date "2019.08.03"]
[Round "9.21"]
[White "Verbist, Julien"]
[Black "De Block, Fabio"]
[Result "1/2-1/2"]
[ECO "B13"]
[WhiteElo "1974"]
[BlackElo "2039"]
[Annotator "NA"]
[PlyCount "51"]
[EventDate "2019.07.22"]
[EventType "swiss"]
[EventCountry "BEL"]
[SourceTitle "playchess.com"]
[Source "ChessBase"]
[SourceQuality "1"]
[TimeControl "40/5400+30:1800+30"]

1. e4 {[%emt 1:30:30]} c6 {[%emt 1:30:30]} 2. d4 {[%emt 0:00:30]} d5 {[%emt 0:00:30]} 3. exd5 {[%emt 0:00:30]} cxd5 {[%emt 0:00:30]} 4. Bd3 {[%emt 0:00:30]} Nc6 {[%emt 0:00:30]} 5. c3 {[%emt 0:00:30]} Qc7 {[%emt 0:00:30]} 6. h3 {[%emt 0:00:30]} Nf6 {[%emt 0:00:30]} 7. Nf3 {[%emt 0:00:30]} g6 {[%emt 0:00:30]} 8. O-O {[%emt 0:00:30]} Bg7 {[%emt 0:00:30]} 9. a4 {[%emt 0:00:30]} O-O {[%emt 0:00:30]} 10. Re1 {[%emt 0:00:30]} Nd7 {[%emt 0:00:30]} 11. Bc2 {[%emt 0:00:30]} b6 {[%emt 0:00:30]} 12. Bg5 {[%emt 0:00:30]} Re8 {[%emt 0:00:30]} 13. Nbd2 {[%emt 0:00:30]} Bb7 14. Bb3 e6 {[%emt 0:01:00]} 15. Bh4 {[%emt 0:01:00]} Na5 {[%emt 0:00:30]} 16. Bg3 {[%emt 0:00:30]} Qc8 {[%emt 0:00:30]} 17. Ba2 {[%emt 0:00:30]} a6 {[%emt 0:00:30]} 18. Ne5 {[%emt 0:00:30]} Nxe5 {[%emt 0:00:30]} 19. Bxe5 {[%emt 0:00:30]} Bxe5 {[%emt 0:00:30]} 20. Rxe5 {[%emt 0:00:30]} Qc6 {[%emt 0:00:30]} 21. b4 {[%emt 0:00:30]} Nc4 {[%emt 0:00:30]} 22. Bxc4 {[%emt 0:00:30]} dxc4 {[%emt 0:00:30]} 23. Qg4 {[%emt 0:00:30]} Rac8 {[%emt 0:00:30]} 24. a5 {[%emt 0:00:30]} b5 {[%emt 0:00:30]} 25. Rae1 {[%emt 0:00:30]} Qd7 {[%emt 0:00:30]} 26. Nf3 {[%emt 0:00:30]} 1/2-1/2

[Event "18th Charleroi Open-A 2019"]
[Site "Charleroi"]
[Date "2019.08.03"]
[Round "9.22"]
[White "Moerman, Thomas"]
[Black "Philippe, Denis-Emmanuel"]
[Result "0-1"]
[ECO "D46"]
[WhiteElo "1931"]
[BlackElo "2015"]
[Annotator "NA"]
[PlyCount "92"]
[EventDate "2019.07.22"]
[EventType "swiss"]
[EventCountry "BEL"]
[SourceTitle "playchess.com"]
[Source "ChessBase"]
[SourceQuality "1"]
[TimeControl "40/5400+30:1800+30"]

1. d4 {[%emt 0:01:09]} d5 {[%emt 1:30:30]} 2. c4 {[%emt 1:29:51]} c6 {[%emt 0:00:00]} 3. e3 {[%emt 0:00:30]} Nf6 {[%emt 0:01:00]} 4. Nc3 {[%emt 0:00:30]} e6 {[%emt 0:00:30]} 5. Nf3 {[%emt 0:00:30]} Nbd7 {[%emt 0:00:00]} 6. Be2 {[%emt 0:00:30]} Bd6 {[%emt 0:00:00]} 7. O-O {[%emt 0:00:30]} O-O {[%emt 0:00:00]} 8. Qc2 {[%emt 0:00:30]} dxc4 {[%emt 0:02:00]} 9. Bxc4 {[%emt 0:00:30]} b5 {[%emt 0:00:30]} 10. Be2 {[%emt 0:00:30]} Bb7 {[%emt 0:00:30]} 11. Rd1 {[%emt 0:00:30]} Qe7 {[%emt 0:00:30]} 12. e4 {[%emt 0:00:30]} e5 {[%emt 0:00:30]} 13. dxe5 Nxe5 14. Nd4 Bc5 {[%emt 0:01:00]} 15. Bg5 {[%emt 0:01:30]} Rfd8 {[%emt 0:00:30]} 16. Nf5 {[%emt 0:00:30]} Qe6 {[%emt 0:00:30]} 17. Rxd8+ {[%emt 0:00:30]} Rxd8 {[%emt 0:00:00]} 18. Rd1 {[%emt 0:00:30]} Re8 {[%emt 0:01:00]} 19. h3 {[%emt 0:00:30]} Ng6 {[%emt 0:00:30]} 20. Bf3 {[%emt 0:00:30]} Ne5 {[%emt 0:00:30]} 21. Ne2 {[%emt 0:00:30]} Nxf3+ {[%emt 0:00:30]} 22. gxf3 {[%emt 0:00:00]} Bf8 {[%emt 0:00:30]} 23. Qd2 {[%emt 0:01:00]} c5 {[%emt 0:00:30]} 24. Nf4 {[%emt 0:00:30]} Qe5 {[%emt 0:00:30]} 25. Bxf6 {[%emt 0:00:30]} Qxf6 {[%emt 0:00:30]} 26. Nd5 {[%emt 0:00:30]} Bxd5 {[%emt 0:00:00]} 27. Qxd5 {[%emt 0:00:30]} g6 {[%emt 0:01:00]} 28. Qd7 {[%emt 0:00:30]} Re6 {[%emt 0:00:30]} 29. Ng3 {[%emt 0:00:30]} Bd6 {[%emt 0:00:30]} 30. Kg2 {[%emt 0:00:30]} Bxg3 {[%emt 0:00:30]} 31. fxg3 {[%emt 0:00:30]} Qxb2+ {[%emt 0:00:00]} 32. Rd2 {[%emt 0:00:30]} Qc3 {[%emt 0:01:00]} 33. h4 {[%emt 0:00:30]} Qe3 {[%emt 0:00:30]} 34. Rd3 {[%emt 0:00:00]} Qe2+ {[%emt 0:00:00]} 35. Kh3 {[%emt 0:01:00]} Qf1+ {[%emt 0:01:00]} 36. Kh2 {[%emt 0:00:30]} Qe2+ {[%emt 0:00:30]} 37. Kh3 {[%emt 0:00:30]} Qf1+ {[%emt 0:00:00]} 38. Kh2 {[%emt 0:00:30]} a6 {[%emt 0:01:00]} 39. h5 {[%emt 0:00:30]} Qf2+ {[%emt 0:00:00]} 40. Kh3 {[%emt 0:00:30]} Qf1+ {[%emt 0:01:00]} 41. Kg4 {[%emt 0:30:30]} gxh5+ {[%emt 0:30:30]} 42. Kf4 {[%emt 0:00:30]} Qc1+ {[%emt 0:00:00]} 43. Rd2 {[%emt 0:00:30]} Kg7 {[%emt 0:01:00]} 44. Qd8 {[%emt 0:00:30]} Qc3 {[%emt 0:00:30]} 45. Rd5 {[%emt 0:00:30]} Rf6+ {[%emt 0:00:00]} 46. Rf5 {[%emt 0:00:30]} Qc1+ {[%emt 0:01:00]} 0-1

[Event "18th Charleroi Open-A 2019"]
[Site "Charleroi"]
[Date "2019.08.03"]
[Round "9.23"]
[White "Vernimmen, Pierre"]
[Black "De Weird, Matthias"]
[Result "1-0"]
[ECO "C61"]
[WhiteElo "1911"]
[BlackElo "2009"]
[Annotator "NA"]
[PlyCount "81"]
[EventDate "2019.07.22"]
[EventType "swiss"]
[EventCountry "BEL"]
[SourceTitle "playchess.com"]
[Source "ChessBase"]
[SourceQuality "1"]
[TimeControl "40/5400+30:1800+30"]

1. e4 {[%emt 0:00:00]} e5 {[%emt 0:00:00]} 2. Nf3 {[%emt 0:00:00]} Nc6 {[%emt 0:00:00]} 3. Bb5 {[%emt 0:00:00]} Nd4 {[%emt 0:00:00]} 4. Nxd4 {[%emt 0:00:23]} exd4 {[%emt 0:00:02]} 5. O-O {[%emt 0:00:32]} c6 {[%emt 0:00:47]} 6. Bc4 {[%emt 0:00:11]} g6 {[%emt 0:01:31]} 7. Qf3 {[%emt 0:09:41]} Qf6 {[%emt 0:00:14]} 8. Qxf6 {[%emt 0:01:37]} Nxf6 {[%emt 0:00:05]} 9. d3 {[%emt 0:01:09]} Bg7 {[%emt 0:00:11]} 10. e5 {[%emt 0:06:49]} Ng4 {[%emt 0:00:14]} 11. f4 {[%emt 0:00:40]} h5 {[%emt 0:00:51]} 12. h3 {[%emt 0:00:44]} Nh6 {[%emt 0:00:07]} 13. Nd2 {[%emt 0:00:53]} O-O {[%emt 0:00:37]} 14. Ne4 {[%emt 0:01:59]} d5 {[%emt 0:03:05]} 15. exd6 {[%emt 0:00:37]} Bf5 {[%emt 0:00:12]} 16. Bd2 {[%emt 0:10:59]} Rad8 {[%emt 0:00:39]} 17. a4 {[%emt 0:00:58]} Rfe8 {[%emt 0:06:20]} 18. Rfe1 {[%emt 0:04:31]} Bxe4 {[%emt 0:02:49]} 19. dxe4 {[%emt 0:01:33]} Rxd6 {[%emt 0:00:12]} 20. a5 {[%emt 0:03:37]} c5 {[%emt 0:08:20]} 21. Kf2 {[%emt 0:03:20]} Kh7 {[%emt 0:01:29]} 22. Kf3 {[%emt 0:00:44]} f6 {[%emt 0:00:36]} 23. g4 {[%emt 0:01:27]} Re7 {[%emt 0:08:46]} 24. b4 {[%emt 0:14:04]} cxb4 {[%emt 0:05:42]} 25. gxh5 {[%emt 0:06:36]} gxh5 {[%emt 0:01:27]} 26. Bxb4 {[%emt 0:00:36]} Rc7 {[%emt 0:00:05]} 27. Bxd6 {[%emt 0:00:45]} Rxc4 {[%emt 0:00:05]} 28. Ra2 {[%emt 0:01:39]} Rc3+ {[%emt 0:00:09]} 29. Kg2 {[%emt 0:00:16]} b5 {[%emt 0:02:19]} 30. a6 {[%emt 0:01:01]} Nf7 {[%emt 0:01:07]} 31. Bb8 {[%emt 0:00:47]} b4 {[%emt 0:00:46]} 32. Bxa7 {[%emt 0:00:21]} d3 {[%emt 0:00:38]} 33. cxd3 {[%emt 0:00:21]} b3 {[%emt 0:00:30]} 34. Rb2 {[%emt 0:08:15]} Rc6 {[%emt 0:04:03]} 35. Ra1 {[%emt 0:02:13]} f5 {[%emt 0:03:14]} 36. e5 {[%emt 0:00:13]} Rg6+ {[%emt 0:00:26]} 37. Kf3 {[%emt 0:01:08]} Bxe5 {[%emt 0:00:29]} 38. fxe5 {[%emt 0:00:43]} Nxe5+ {[%emt 0:00:10]} 39. Ke3 {[%emt 0:00:59]} Rg3+ {[%emt 0:01:33]} 40. Kf4 {[%emt 0:00:30]} Rg7 {[%emt 0:00:35]} 41. Kxe5 {[%emt 0:30:05]} 1-0

[Event "18th Charleroi Open-A 2019"]
[Site "Charleroi"]
[Date "2019.08.03"]
[Round "9.24"]
[White "Damlakhi, Mahmoud"]
[Black "Barbier, Wim"]
[Result "0-1"]
[ECO "A55"]
[WhiteElo "2008"]
[BlackElo "2068"]
[Annotator "NA"]
[PlyCount "84"]
[EventDate "2019.07.22"]
[EventType "swiss"]
[EventCountry "BEL"]
[SourceTitle "playchess.com"]
[Source "ChessBase"]
[SourceQuality "1"]
[TimeControl "40/5400+30:1800+30"]

1. d4 {[%emt 0:00:00]} d6 {[%emt 0:00:00]} 2. Nf3 {[%emt 0:00:00]} Nf6 {[%emt 0:00:00]} 3. g3 {[%emt 0:00:22]} Nbd7 {[%emt 0:00:07]} 4. Bg2 {[%emt 0:00:10]} e5 {[%emt 0:00:30]} 5. O-O {[%emt 0:00:17]} Be7 {[%emt 0:00:44]} 6. c4 {[%emt 0:00:45]} O-O {[%emt 0:01:10]} 7. Nc3 {[%emt 0:00:08]} c6 {[%emt 0:01:09]} 8. e4 {[%emt 0:00:22]} a6 {[%emt 0:00:25]} 9. a4 {[%emt 0:00:08]} a5 {[%emt 0:00:34]} 10. h3 {[%emt 0:00:17]} Re8 {[%emt 0:00:28]} 11. Be3 {[%emt 0:00:08]} Bf8 {[%emt 0:01:15]} 12. Qc2 {[%emt 0:01:26]} exd4 {[%emt 0:02:43]} 13. Nxd4 {[%emt 0:00:10]} Nc5 {[%emt 0:00:13]} 14. Rfe1 {[%emt 0:04:56]} Qb6 {[%emt 0:04:49]} 15. b3 {[%emt 0:00:21]} Be6 {[%emt 0:09:06]} 16. Rad1 {[%emt 0:04:16]} Rad8 {[%emt 0:00:19]} 17. f4 {[%emt 0:01:02]} Bc8 {[%emt 0:10:34]} 18. Bf2 {[%emt 0:06:17]} g6 {[%emt 0:04:27]} 19. g4 {[%emt 0:17:00]} Qc7 {[%emt 0:08:02]} 20. Bg3 {[%emt 0:05:26]} Nfd7 {[%emt 0:02:58]} 21. Kh1 {[%emt 0:09:38]} Bg7 {[%emt 0:03:50]} 22. Ndb5 {[%emt 0:07:36]} Qb6 {[%emt 0:04:28]} 23. Rxd6 {[%emt 0:07:10]} Bf8 {[%emt 0:02:51]} 24. Nd5 {[%emt 0:00:13]} Qa6 {[%emt 0:00:23]} 25. Rxd7 {[%emt 0:09:23]} Bxd7 {[%emt 0:03:38]} 26. Nbc7 {[%emt 0:02:46]} Qa7 {[%emt 0:00:06]} 27. Nf6+ {[%emt 0:00:19]} Kh8 {[%emt 0:00:06]} 28. Ncxe8 {[%emt 0:00:16]} Bxe8 {[%emt 0:00:09]} 29. Nxe8 {[%emt 0:01:03]} Rxe8 {[%emt 0:00:06]} 30. e5 {[%emt 0:00:10]} Qb6 {[%emt 0:00:21]} 31. Rb1 {[%emt 0:02:46]} Rd8 {[%emt 0:01:30]} 32. Bf1 {[%emt 0:08:16]} Rd4 {[%emt 0:06:20]} 33. f5 {[%emt 0:01:22]} Ne4 {[%emt 0:01:28]} 34. Bh2 {[%emt 0:00:41]} Nd2 {[%emt 0:03:22]} 35. Re1 {[%emt 0:03:27]} Nf3 {[%emt 0:03:52]} 36. Re2 {[%emt 0:00:57]} Qc5 {[%emt 0:03:59]} 37. Bg2 {[%emt 0:00:46]} Nxh2 {[%emt 0:00:28]} 38. Kxh2 {[%emt 0:00:05]} Bh6 {[%emt 0:00:31]} 39. e6 {[%emt 0:02:25]} Qd6+ {[%emt 0:00:38]} 40. Kg1 {[%emt 0:00:41]} Rd1+ {[%emt 0:00:13]} 41. Kf2 {[%emt 0:33:58]} Qd4+ {[%emt 0:30:14]} 42. Kf3 {[%emt 0:00:43]} Qf4# {[%emt 0:00:06]} 0-1

[Event "18th Charleroi Open-A 2019"]
[Site "Charleroi"]
[Date "2019.08.03"]
[Round "9.25"]
[White "Dugailliez, Guy"]
[Black "Godry, Clement"]
[Result "0-1"]
[ECO "C30"]
[WhiteElo "2063"]
[BlackElo "1962"]
[Annotator "NA"]
[PlyCount "74"]
[EventDate "2019.07.22"]
[EventType "swiss"]
[EventCountry "BEL"]
[SourceTitle "playchess.com"]
[Source "ChessBase"]
[SourceQuality "1"]
[TimeControl "40/5400+30:1800+30"]

1. e4 {[%emt 0:00:00]} e5 {[%emt 1:30:30]} 2. f4 {[%emt 0:00:00]} Nc6 {[%emt 0:00:00]} 3. Nf3 {[%emt 0:00:17]} f5 {[%emt 0:00:00]} 4. exf5 {[%emt 0:01:02]} e4 {[%emt 0:00:00]} 5. Ne5 {[%emt 0:03:15]} Nf6 {[%emt 0:00:00]} 6. d3 {[%emt 0:01:17]} Qe7 {[%emt 0:00:00]} 7. Be2 {[%emt 0:04:51]} Nxe5 {[%emt 0:00:00]} 8. fxe5 {[%emt 0:00:18]} Qxe5 {[%emt 0:00:00]} 9. O-O {[%emt 0:02:19]} Bc5+ {[%emt 0:00:00]} 10. Kh1 {[%emt 0:00:30]} O-O {[%emt 0:00:00]} 11. c3 {[%emt 0:02:34]} exd3 {[%emt 0:00:00]} 12. Bxd3 {[%emt 0:00:47]} d5 {[%emt 0:00:00]} 13. Bf4 {[%emt 0:03:11]} Qe7 {[%emt 0:00:00]} 14. Bg5 {[%emt 0:07:54]} Bd7 {[%emt 0:00:00]} 15. Nd2 {[%emt 0:02:30]} Rae8 {[%emt 0:00:00]} 16. b4 {[%emt 0:05:32]} Bd6 {[%emt 0:00:00]} 17. Qb3 {[%emt 0:01:34]} c6 {[%emt 0:00:00]} 18. Ne4 {[%emt 0:04:12]} Be5 {[%emt 0:00:00]} 19. Rae1 {[%emt 0:00:10]} Qf7 {[%emt 0:00:00]} 20. Nc5 {[%emt 0:03:11]} Bxh2 {[%emt 0:00:00]} 21. Rxe8 {[%emt 0:14:44]} Rxe8 {[%emt 0:00:00]} 22. Qd1 {[%emt 0:02:15]} Be5 {[%emt 0:00:00]} 23. c4 {[%emt 0:02:24]} b6 {[%emt 0:00:00]} 24. Bxf6 {[%emt 0:03:21]} Bxf6 {[%emt 0:00:00]} 25. Nxd7 {[%emt 0:00:35]} Qxd7 {[%emt 0:00:00]} 26. cxd5 {[%emt 0:00:22]} cxd5 {[%emt 0:00:00]} 27. Re1 {[%emt 0:02:36]} Bc3 {[%emt 0:00:00]} 28. Rxe8+ {[%emt 0:02:09]} Qxe8 {[%emt 0:00:00]} 29. b5 {[%emt 0:01:41]} Qe3 {[%emt 0:00:00]} 30. Bc2 {[%emt 0:07:14]} Bd4 {[%emt 0:00:00]} 31. g3 {[%emt 0:01:01]} Kf8 {[%emt 0:00:00]} 32. Kg2 {[%emt 0:01:00]} Qf2+ {[%emt 0:00:00]} 33. Kh3 {[%emt 0:00:50]} Be5 {[%emt 0:00:00]} 34. Qd3 {[%emt 0:01:30]} Ke7 {[%emt 0:00:00]} 35. Bb3 {[%emt 0:03:56]} d4 {[%emt 0:00:00]} 36. Kg4 {[%emt 0:03:52]} Kf6 {[%emt 0:00:00]} 37. Qf3 {[%emt 0:00:52]} h5+ {[%emt 0:00:00]} 0-1

[Event "18th Charleroi Open-A 2019"]
[Site "Charleroi"]
[Date "2019.08.03"]
[Round "9.26"]
[White "Roels, Frederik"]
[Black "Oupindrin, Narayanin"]
[Result "0-1"]
[ECO "E11"]
[WhiteElo "1944"]
[BlackElo "2056"]
[Annotator "NA"]
[PlyCount "78"]
[EventDate "2019.07.22"]
[EventType "swiss"]
[EventCountry "BEL"]
[SourceTitle "playchess.com"]
[Source "ChessBase"]
[SourceQuality "1"]
[TimeControl "40/5400+30:1800+30"]

1. d4 {[%emt 0:00:20]} Nf6 {[%emt 0:00:00]} 2. c4 {[%emt 0:00:16]} e6 {[%emt 0:00:02]} 3. Nf3 {[%emt 0:00:08]} Bb4+ {[%emt 0:00:26]} 4. Nbd2 {[%emt 0:00:48]} d5 {[%emt 0:02:33]} 5. Qa4+ {[%emt 0:00:05]} Nc6 {[%emt 0:00:13]} 6. a3 {[%emt 0:00:38]} Be7 {[%emt 0:01:24]} 7. e3 {[%emt 0:00:46]} Bd7 {[%emt 0:01:30]} 8. Qc2 {[%emt 0:00:09]} a5 {[%emt 0:03:28]} 9. b3 {[%emt 0:01:20]} O-O {[%emt 0:02:12]} 10. Bd3 {[%emt 0:02:41]} Re8 {[%emt 0:01:45]} 11. Bb2 {[%emt 0:01:32]} h6 {[%emt 0:02:20]} 12. O-O {[%emt 0:03:54]} Rc8 {[%emt 0:05:55]} 13. Bc3 {[%emt 0:03:07]} b6 {[%emt 0:02:01]} 14. Ne5 {[%emt 0:07:45]} Rf8 {[%emt 0:07:46]} 15. Bb2 {[%emt 0:10:06]} Nxe5 {[%emt 0:02:40]} 16. dxe5 {[%emt 0:01:15]} Ne8 {[%emt 0:00:18]} 17. f4 {[%emt 0:05:42]} f5 {[%emt 0:01:29]} 18. cxd5 {[%emt 0:00:32]} exd5 {[%emt 0:00:23]} 19. Ba6 {[%emt 0:05:35]} Rb8 {[%emt 0:02:08]} 20. Qd3 {[%emt 0:00:50]} c6 {[%emt 0:02:36]} 21. Rfc1 {[%emt 0:02:19]} Nc7 {[%emt 0:01:39]} 22. a4 {[%emt 0:02:20]} Ne6 {[%emt 0:02:49]} 23. Qf1 {[%emt 0:04:53]} Bc5 {[%emt 0:01:35]} 24. Rxc5 {[%emt 0:06:33]} Nxc5 {[%emt 0:00:41]} 25. Be2 {[%emt 0:00:06]} Be6 {[%emt 0:04:15]} 26. Qd1 {[%emt 0:03:13]} Ne4 {[%emt 0:01:37]} 27. Nf3 {[%emt 0:03:44]} c5 {[%emt 0:01:29]} 28. Qc2 {[%emt 0:01:26]} Rf7 {[%emt 0:03:46]} 29. Rd1 {[%emt 0:01:09]} Rd7 {[%emt 0:02:26]} 30. Bb5 {[%emt 0:00:47]} Rc7 {[%emt 0:00:17]} 31. Qe2 {[%emt 0:00:56]} Qe7 {[%emt 0:01:08]} 32. Rc1 {[%emt 0:02:06]} Kh7 {[%emt 0:03:50]} 33. Ba3 {[%emt 0:00:25]} Qf7 {[%emt 0:04:47]} 34. Qe1 {[%emt 0:00:27]} Kg8 {[%emt 0:04:26]} 35. Bd3 {[%emt 0:01:01]} Rd8 {[%emt 0:01:50]} 36. Bb2 {[%emt 0:00:45]} Qe7 {[%emt 0:05:16]} 37. Qe2 {[%emt 0:05:02]} Kh8 {[%emt 0:04:39]} 38. Nh4 {[%emt 0:01:00]} Qxh4 {[%emt 0:00:27]} 39. g4 {[%emt 0:00:11]} Qxg4+ {[%emt 0:00:49]} 0-1

[Event "18th Charleroi Open-A 2019"]
[Site "Charleroi"]
[Date "2019.08.03"]
[Round "9.27"]
[White "Zamparo, Sergio"]
[Black "Butzen, Robin"]
[Result "1-0"]
[ECO "B92"]
[WhiteElo "2031"]
[BlackElo "1967"]
[Annotator "NA"]
[PlyCount "83"]
[EventDate "2019.07.22"]
[EventType "swiss"]
[EventCountry "BEL"]
[SourceTitle "playchess.com"]
[Source "ChessBase"]
[SourceQuality "1"]
[TimeControl "40/5400+30:1800+30"]

1. e4 {[%emt 0:00:00]} c5 {[%emt 0:00:31]} 2. Nf3 {[%emt 0:00:00]} d6 {[%emt 0:00:17]} 3. d4 {[%emt 0:00:00]} cxd4 {[%emt 0:00:07]} 4. Nxd4 {[%emt 0:00:00]} Nf6 {[%emt 0:00:13]} 5. Nc3 {[%emt 0:00:11]} a6 {[%emt 0:00:06]} 6. a4 {[%emt 0:00:13]} e5 {[%emt 0:04:48]} 7. Nb3 {[%emt 0:00:11]} Be7 {[%emt 0:00:12]} 8. Be2 {[%emt 0:03:39]} O-O {[%emt 0:00:24]} 9. O-O {[%emt 0:01:51]} b6 {[%emt 0:04:39]} 10. Be3 {[%emt 0:01:05]} Bb7 {[%emt 0:01:03]} 11. f3 {[%emt 0:14:44]} Nbd7 {[%emt 0:02:39]} 12. Nd2 {[%emt 0:08:35]} d5 {[%emt 0:06:39]} 13. exd5 {[%emt 0:00:25]} Nxd5 {[%emt 0:06:44]} 14. Nxd5 {[%emt 0:00:12]} Bxd5 {[%emt 0:00:06]} 15. Nc4 {[%emt 0:05:13]} Be6 {[%emt 0:01:08]} 16. Qd2 {[%emt 0:06:19]} Qc7 {[%emt 0:03:29]} 17. b3 {[%emt 0:03:04]} f5 {[%emt 0:06:05]} 18. Bf2 {[%emt 0:04:48]} Rfd8 {[%emt 0:08:17]} 19. Rfd1 {[%emt 0:07:05]} Rac8 {[%emt 0:16:15]} 20. Qe1 {[%emt 0:05:04]} Nc5 {[%emt 0:22:01]} 21. Bf1 {[%emt 0:07:49]} Bf6 {[%emt 0:06:25]} 22. Rxd8+ {[%emt 0:09:03]} Rxd8 {[%emt 0:00:06]} 23. Nxb6 {[%emt 0:06:28]} e4 {[%emt 0:08:11]} 24. Rb1 {[%emt 0:00:09]} Qxb6 {[%emt 0:00:58]} 25. b4 {[%emt 0:00:01]} Qc6 {[%emt 0:00:24]} 26. Bxc5 {[%emt 0:01:45]} exf3 {[%emt 0:00:32]} 27. gxf3 {[%emt 0:04:26]} Bd5 {[%emt 0:00:10]} 28. Rd1 {[%emt 0:01:30]} Bxf3 {[%emt 0:00:12]} 29. Bc4+ {[%emt 0:01:23]} Kh8 {[%emt 0:01:00]} 30. Rxd8+ {[%emt 0:02:37]} Bxd8 {[%emt 0:00:06]} 31. Qe5 {[%emt 0:01:57]} Qd7 {[%emt 0:01:08]} 32. Bd3 {[%emt 0:03:36]} Bc6 {[%emt 0:00:30]} 33. a5 {[%emt 0:00:53]} Be4 {[%emt 0:00:31]} 34. Bxe4 {[%emt 0:01:29]} Qd1+ {[%emt 0:00:19]} 35. Kg2 {[%emt 0:00:33]} Qg4+ {[%emt 0:00:37]} 36. Kf1 {[%emt 0:00:02]} Qd1+ {[%emt 0:00:09]} 37. Kg2 {[%emt 0:00:09]} Qg4+ {[%emt 0:00:05]} 38. Kh1 {[%emt 0:00:38]} Qxe4+ {[%emt 0:01:11]} 39. Qxe4 {[%emt 0:00:03]} fxe4 {[%emt 0:00:04]} 40. Kg2 {[%emt 0:00:26]} Kg8 {[%emt 0:00:38]} 41. Kf2 {[%emt 0:30:22]} Kf7 {[%emt 0:05:31]} 42. b5 {[%emt 0:00:00]} 1-0